fUSD/lending_fUSD_20250109
["ID","MTS","AMOUNT","RATE_DAILY","PERIOD"]
[348314158,1736442646411,-692.42,0.00010069,2]
[348314159,1736442646420,-500.0,0.00010069,2]
[348314160,1736442646430,-500.0,0.00010069,2]
[348314161,1736442646440,-500.0,0.00010069,2]
[348314162,1736442646449,-534.05,0.00010069,2]
[348314163,1736442646459,-500.0,0.00010069,2]
[348314164,1736442646468,-1182.03,0.00010069,2]
[348314165,1736442646478,-1205.69,0.00010069,2]
[348314166,1736442646487,-500.0,0.00010069,2]
[348314167,1736442646497,-500.0,0.00010069,2]
[348314168,1736442646507,-992.0,0.00010069,2]
[348314169,1736442646517,-500.0,0.00010069,2]
[348314170,1736442646528,-500.0,0.00010069,2]
[348314171,1736442646538,-1017.69,0.00010069,2]
[348314172,1736442646547,-1281.81,0.00010069,2]
[348314173,1736442646557,-633.87,0.00010069,2]
[348314174,1736442646567,-364.63025745,0.00010069,2]
[348314175,1736442646576,-500.0,0.00010069,2]
[348314176,1736442646586,-500.0,0.00010069,2]
[348314177,1736442646595,-545.87,0.00010069,2]
[348314178,1736442646605,-500.0,0.00010069,2]
[348314179,1736442646616,-500.0,0.00010069,2]
[348314180,1736442646626,-534.52,0.00010069,2]
[348314181,1736442646636,-500.0,0.00010069,2]
[348314182,1736442646646,-500.0,0.00010069,2]
[348314183,1736442646656,-500.0,0.00010069,2]
[348314184,1736442646666,-1272.64,0.00010069,2]
[348314185,1736442646676,-500.0,0.00010069,2]
[348314186,1736442646684,-500.0,0.00010069,2]
[348314187,1736442646693,-500.0,0.00010069,2]
[348314188,1736442646703,-500.0,0.00010069,2]
[348314189,1736442646712,-500.0,0.00010069,2]
[348314190,1736442646721,-500.0,0.00010069,2]
[348314191,1736442646730,-840.54,0.00010069,2]
[348314192,1736442646739,-500.0,0.00010069,2]
[348314193,1736442646749,-500.0,0.00010069,2]
[348314194,1736442646758,-500.0,0.00010069,2]
[348314195,1736442646768,-500.0,0.00010069,2]
[348314196,1736442646778,-691.9,0.00010069,2]
[348314197,1736442646788,-500.0,0.00010069,2]
[348314199,1736442646800,-1260.17,0.00010069,2]
[348314201,1736442646810,-571.29,0.00010069,2]
[348314202,1736442646819,-319.07,0.00010069,2]
[348314205,1736442646830,-6532.98,0.0001007,2]
[348314206,1736442646840,-3938.41,0.0001007,2]
[348314209,1736442646849,-3774.31,0.0001007,2]
[348314210,1736442646859,-2397.73,0.0001007,2]
[348314212,1736442646869,-4753.83,0.0001007,2]
[348314214,1736442646879,-500.0,0.0001007,2]
[348314216,1736442646888,-1491.76,0.0001007,2]
[348314218,1736442646897,-1212.28,0.0001007,2]
[348314220,1736442646906,-1744.44,0.0001007,2]
[348314222,1736442646916,-2117.59,0.0001007,2]
[348314224,1736442646925,-1921.3,0.0001007,2]
[348314226,1736442646935,-1822.71,0.0001007,2]
[348314228,1736442646945,-4200.78,0.0001007,2]
[348314230,1736442646956,-2007.74,0.0001007,2]
[348314232,1736442646965,-2463.3,0.0001007,2]
[348314234,1736442646975,-1734.7,0.0001007,2]
[348314236,1736442646985,-2365.26,0.0001007,2]
[348314238,1736442646995,-2036.39,0.0001007,2]
[348314240,1736442647004,-500.0,0.0001007,2]
[348314242,1736442647014,-676.5,0.0001007,2]
[348314244,1736442647023,-845.58,0.0001007,2]
[348314246,1736442647033,-637.67,0.0001007,2]
[348314248,1736442647043,-674.22,0.0001007,2]
[348314250,1736442647053,-513.98,0.0001007,2]
[348314252,1736442647062,-680.52,0.0001007,2]
[348314254,1736442647071,-1258.75,0.0001007,2]
[348314255,1736442647080,-500.0,0.0001007,2]
[348314257,1736442647090,-2033.44,0.00010071,2]
[348314259,1736442647099,-1727.52,0.00010071,2]
[348314260,1736442647109,-2311.62,0.00010071,2]
[348314262,1736442647119,-1763.8,0.00010071,2]
[348314264,1736442647130,-905.52,0.00010071,2]
[348314266,1736442647139,-2153.11,0.00010071,2]
[348314268,1736442647149,-1290.92,0.00010071,2]
[348314270,1736442647158,-4165.03,0.00010071,2]
[348314271,1736442647168,-509.91,0.00010071,2]
[348314273,1736442647178,-10339.63,0.00010071,2]
[348314275,1736442647187,-1895.68,0.00010071,2]
[348314277,1736442647196,-1576.54,0.00010071,2]
[348314278,1736442647207,-1221.93,0.00010071,2]
[348314280,1736442647216,-628.86,0.00010071,2]
[348314282,1736442647226,-2038.13,0.00010071,2]
[348314284,1736442647236,-2626.05,0.00010071,2]
[348314285,1736442647245,-893.98,0.00010071,2]
[348314287,1736442647255,-150.0,0.00010072,2]
[348314288,1736442647264,-150.0,0.00010139,2]
[348314289,1736442647273,-559.1021256,0.00010141,2]
[348314290,1736442647282,-150.0,0.00010157,2]
[348314291,1736442647291,-150.0,0.00010242,2]
[348314292,1736442647301,-150.0,0.00010243,2]
[348314293,1736442647311,-559.1021256,0.00010252,2]
[348314294,1736442647321,-4958.83131667,0.00010272,4]
[348314295,1736442647330,-150.0,0.00010328,2]
[348314296,1736442647340,-156.554,0.0001034,2]
[348314297,1736442647349,-205.85318761,0.00010341,2]
[348314298,1736442647359,-1549.84,0.00010342,2]
[348314299,1736442647369,-1257.62,0.00010342,2]
[348314300,1736442647379,-2007.25,0.00010342,2]
[348314301,1736442647390,-4207.68,0.00010342,2]
[348314302,1736442647400,-1868.09,0.00010342,2]
[348314303,1736442647410,-1430.82,0.00010342,2]
[348314304,1736442647420,-812.036589,0.00010342,2]
[348314305,1736442647430,-754.420427,0.00010342,2]
[348314306,1736442647440,-3970.32,0.00010342,2]
[348314307,1736442647450,-2083.5,0.00010342,2]
[348314308,1736442647460,-1021.82,0.00010342,2]
[348314309,1736442647470,-500.0,0.00010342,2]
[348314310,1736442647479,-5379.17,0.00010342,2]
[348314311,1736442647488,-594.17,0.00010342,2]
[348314312,1736442647498,-1409.26,0.00010342,2]
[348314313,1736442647507,-634.61,0.00010342,2]
[348314314,1736442647516,-817.59,0.00010342,2]
[348314315,1736442647526,-631.38,0.00010342,2]
[348314316,1736442647535,-4782.65,0.00010342,2]
[348314317,1736442647545,-2135.39,0.00010342,2]
[348314318,1736442647555,-3557.26,0.00010342,2]
[348314319,1736442647565,-10090.41,0.00010342,2]
[348314320,1736442647574,-1407.15,0.00010342,2]
[348314321,1736442647584,-1449.01,0.00010342,2]
[348314322,1736442647594,-2435.43,0.00010342,2]
[348314323,1736442647604,-549.53,0.00010342,2]
[348314324,1736442647615,-1855.69,0.00010342,2]
[348314325,1736442647624,-5304.55,0.00010342,2]
[348314326,1736442647635,-2939.28,0.00010342,2]
[348314327,1736442647645,-1680.01,0.00010342,2]
[348314328,1736442647654,-715.97,0.00010342,2]
[348314329,1736442647664,-6514.28,0.00010342,2]
[348314330,1736442647675,-3504.21,0.00010342,2]
[348314331,1736442647684,-5974.32,0.00010342,2]
[348314332,1736442647694,-928.67,0.00010342,2]
[348314333,1736442647705,-1855.97,0.00010342,2]
[348314334,1736442647714,-1927.53,0.00010342,2]
[348314335,1736442647724,-2360.9,0.00010342,2]
[348314336,1736442647734,-1815.95,0.00010342,2]
[348314337,1736442647744,-5398.17,0.00010342,2]
[348314338,1736442647754,-500.0,0.00010342,2]
[348314339,1736442647764,-2517.96,0.00010342,2]
[348314340,1736442647774,-615.78,0.00010342,2]
[348314341,1736442647784,-1266.39,0.00010342,2]
[348314342,1736442647797,-1328.6,0.00010342,2]
[348314343,1736442647806,-1317.99,0.00010342,2]
[348314344,1736442647816,-500.0,0.00010342,2]
[348314345,1736442647826,-1495.08,0.00010342,2]
[348314346,1736442647905,-500.0,0.00010342,2]
[348314347,1736442647915,-632.58,0.00010342,2]
[348314348,1736442647925,-534.44,0.00010342,2]
[348314349,1736442647935,-951.32,0.00010342,2]
[348314350,1736442647945,-3884.13,0.00010342,2]
[348314351,1736442647955,-938.0,0.00010343,2]
[348314352,1736442647966,-596.89,0.00010343,2]
[348314353,1736442647976,-500.0,0.00010343,2]
[348314354,1736442647985,-500.0,0.00010343,2]
[348314355,1736442647995,-500.0,0.00010343,2]
[348314356,1736442648005,-500.0,0.00010343,2]
[348314357,1736442648014,-500.0,0.00010343,2]
[348314358,1736442648023,-500.0,0.00010343,2]
[348314359,1736442648032,-500.0,0.00010343,2]
[348314360,1736442648042,-500.0,0.00010343,2]
[348314361,1736442648051,-500.0,0.00010343,2]
[348314362,1736442648061,-500.0,0.00010343,2]
[348314363,1736442648071,-500.0,0.00010343,2]
[348314364,1736442648081,-500.0,0.00010343,2]
[348314365,1736442648091,-500.0,0.00010343,2]
[348314366,1736442648101,-500.0,0.00010343,2]
[348314367,1736442648115,-500.0,0.00010343,2]
[348314368,1736442648125,-500.0,0.00010343,2]
[348314369,1736442648135,-500.0,0.00010343,2]
[348314370,1736442648145,-500.0,0.00010343,2]
[348314371,1736442648154,-500.0,0.00010343,2]
[348314372,1736442648164,-500.0,0.00010343,2]
[348314373,1736442648174,-500.0,0.00010343,2]
[348314374,1736442648184,-500.0,0.00010343,2]
[348314375,1736442648194,-500.0,0.00010343,2]
[348314376,1736442648204,-500.0,0.00010343,2]
[348314377,1736442648213,-500.0,0.00010343,2]
[348314378,1736442648223,-500.0,0.00010343,2]
[348314379,1736442648232,-500.0,0.00010343,2]
[348314380,1736442648242,-500.0,0.00010343,2]
[348314381,1736442648252,-500.0,0.00010343,2]
[348314382,1736442648266,-703.64,0.00010343,2]
[348314383,1736442648280,-549.7,0.00010343,2]
[348314384,1736442648290,-500.0,0.00010343,2]
[348314385,1736442648300,-500.0,0.00010343,2]
[348314386,1736442648311,-1152.05,0.00010343,2]
[348314387,1736442648320,-595.51,0.00010343,2]
[348314388,1736442648330,-500.0,0.00010343,2]
[348314389,1736442648340,-500.0,0.00010343,2]
[348314390,1736442648350,-500.0,0.00010343,2]
[348314391,1736442648361,-730.02,0.00010343,2]
[348314392,1736442648371,-500.0,0.00010343,2]
[348314393,1736442648381,-500.0,0.00010343,2]
[348314394,1736442648390,-679.78,0.00010343,2]
[348314395,1736442648399,-506.06,0.00010343,2]
[348314396,1736442648408,-500.0,0.00010343,2]
[348314397,1736442648418,-500.21,0.00010343,2]
[348314398,1736442648427,-636.82,0.00010343,2]
[348314399,1736442648438,-591.95,0.00010343,2]
[348314400,1736442648447,-500.0,0.00010343,2]
[348314401,1736442648457,-500.0,0.00010343,2]
[348314402,1736442648467,-526.02,0.00010343,2]
[348314403,1736442648476,-500.0,0.00010343,2]
[348314404,1736442648486,-581.45,0.00010343,2]
[348314405,1736442648495,-500.0,0.00010343,2]
[348314406,1736442648505,-682.24,0.00010343,2]
[348314407,1736442648514,-586.81,0.00010343,2]
[348314408,1736442648523,-500.0,0.00010343,2]
[348314409,1736442648533,-500.0,0.00010343,2]
[348314410,1736442648542,-1316.75,0.00010343,2]
[348314411,1736442648552,-500.0,0.00010343,2]
[348314412,1736442648562,-500.0,0.00010343,2]
[348314413,1736442648572,-500.0,0.00010343,2]
[348314414,1736442648582,-500.0,0.00010343,2]
[348314415,1736442648591,-500.0,0.00010343,2]
[348314416,1736442648600,-500.0,0.00010343,2]
[348314417,1736442648612,-1192.25,0.00010343,2]
[348314418,1736442648622,-500.0,0.00010343,2]
[348314419,1736442648631,-500.0,0.00010343,2]
[348314420,1736442648641,-500.0,0.00010343,2]
[348314421,1736442648650,-500.0,0.00010343,2]
[348314422,1736442648660,-500.0,0.00010343,2]
[348314423,1736442648670,-500.0,0.00010343,2]
[348314424,1736442648679,-500.0,0.00010343,2]
[348314425,1736442648688,-500.0,0.00010343,2]
[348314426,1736442648697,-500.0,0.00010343,2]
[348314427,1736442648707,-500.0,0.00010343,2]
[348314428,1736442648716,-500.0,0.00010343,2]
[348314429,1736442648725,-934.92,0.00010343,2]
[348314430,1736442648735,-500.0,0.00010343,2]
[348314431,1736442648744,-811.49,0.00010343,2]
[348314432,1736442648754,-500.0,0.00010343,2]
[348314433,1736442648763,-500.0,0.00010343,2]
[348314434,1736442648772,-500.0,0.00010343,2]
[348314435,1736442648782,-500.0,0.00010343,2]
[348314436,1736442648791,-667.86,0.00010343,2]
[348314437,1736442648804,-500.0,0.00010343,2]
[348314438,1736442648813,-500.0,0.00010343,2]
[348314439,1736442648823,-500.0,0.00010343,2]
[348314440,1736442648834,-500.0,0.00010343,2]
[348314441,1736442648844,-517.02,0.00010343,2]
[348314442,1736442648854,-500.0,0.00010343,2]
[348314443,1736442648866,-500.0,0.00010343,2]
[348314444,1736442648875,-1282.01,0.00010343,2]
[348314445,1736442648885,-500.0,0.00010343,2]
[348314446,1736442648894,-500.0,0.00010343,2]
[348314447,1736442648903,-280.21696612,0.00010343,2]
[348314448,1736442648913,-504.51,0.00010343,2]
[348314449,1736442648922,-500.0,0.00010343,2]
[348314450,1736442648932,-772.82,0.00010343,2]
[348314451,1736442648942,-500.0,0.00010343,2]
[348314452,1736442648951,-500.0,0.00010343,2]
[348314453,1736442648960,-635.44,0.00010343,2]
[348314454,1736442648970,-500.0,0.00010343,2]
[348314455,1736442648980,-500.0,0.00010343,2]
[348314456,1736442648989,-890.92,0.00010343,2]
[348314457,1736442648999,-500.0,0.00010343,2]
[348314458,1736442649008,-500.0,0.00010343,2]
[348314459,1736442649017,-500.0,0.00010343,2]
[348314460,1736442649027,-500.0,0.00010343,2]
[348314461,1736442649037,-571.11,0.00010343,2]
[348314462,1736442649047,-500.0,0.00010343,2]
[348314463,1736442649057,-625.17,0.00010343,2]
[348314464,1736442649067,-500.0,0.00010343,2]
[348314465,1736442649076,-500.0,0.00010343,2]
[348314466,1736442649086,-500.0,0.00010343,2]
[348314467,1736442649095,-500.0,0.00010343,2]
[348314468,1736442649106,-500.0,0.00010343,2]
[348314469,1736442649119,-598.75,0.00010343,2]
[348314470,1736442649130,-554.42,0.00010343,2]
[348314471,1736442649140,-508.0,0.00010343,2]
[348314472,1736442649151,-500.0,0.00010343,2]
[348314473,1736442649161,-500.0,0.00010343,2]
[348314474,1736442649171,-500.0,0.00010343,2]
[348314475,1736442649181,-500.0,0.00010343,2]
[348314476,1736442649191,-500.0,0.00010343,2]
[348314477,1736442649201,-500.0,0.00010343,2]
[348314478,1736442649211,-500.0,0.00010343,2]
[348314479,1736442649221,-1214.35,0.00010343,2]
[348314480,1736442649231,-500.0,0.00010343,2]
[348314481,1736442649240,-500.0,0.00010343,2]
[348314482,1736442649251,-1724.89,0.00010343,2]
[348314483,1736442649260,-548.05,0.00010343,2]
[348314484,1736442649270,-500.68,0.00010343,2]
[348314485,1736442649279,-500.0,0.00010343,2]
[348314486,1736442649289,-500.0,0.00010343,2]
[348314487,1736442649299,-500.0,0.00010343,2]
[348314488,1736442649309,-500.0,0.00010343,2]
[348314489,1736442649318,-1101.0,0.00010343,2]
[348314490,1736442649327,-500.0,0.00010343,2]
[348314491,1736442649337,-500.0,0.00010343,2]
[348314492,1736442649347,-530.19,0.00010343,2]
[348314493,1736442649356,-500.0,0.00010343,2]
[348314494,1736442649368,-500.0,0.00010343,2]
[348314495,1736442649378,-567.59,0.00010343,2]
[348314496,1736442649387,-500.0,0.00010343,2]
[348314497,1736442649397,-500.0,0.00010343,2]
[348314498,1736442649408,-500.0,0.00010343,2]
[348314499,1736442649418,-957.35,0.00010343,2]
[348314500,1736442649428,-704.52,0.00010343,2]
[348314501,1736442649438,-500.0,0.00010343,2]
[348314502,1736442649448,-500.0,0.00010343,2]
[348314503,1736442649458,-500.0,0.00010343,2]
[348314504,1736442649467,-500.0,0.00010343,2]
[348314505,1736442649476,-500.0,0.00010343,2]
[348314506,1736442649486,-500.0,0.00010343,2]
[348314507,1736442649496,-700.47,0.00010343,2]
[348314508,1736442649505,-849.96,0.00010343,2]
[348314509,1736442649515,-500.0,0.00010343,2]
[348314510,1736442649525,-500.0,0.00010343,2]
[348314511,1736442649535,-500.0,0.00010343,2]
[348314512,1736442649544,-500.0,0.00010343,2]
[348314513,1736442649554,-500.0,0.00010343,2]
[348314514,1736442649564,-500.0,0.00010343,2]
[348314515,1736442649574,-500.0,0.00010343,2]
[348314516,1736442649584,-500.0,0.00010343,2]
[348314517,1736442649594,-500.0,0.00010343,2]
[348314518,1736442649603,-922.52,0.00010343,2]
[348314519,1736442649614,-678.45,0.00010343,2]
[348314520,1736442649623,-500.0,0.00010343,2]
[348314521,1736442649633,-500.0,0.00010343,2]
[348314522,1736442649643,-1230.21,0.00010343,2]
[348314523,1736442649652,-500.0,0.00010343,2]
[348314524,1736442649662,-500.0,0.00010343,2]
[348314525,1736442649671,-500.0,0.00010343,2]
[348314526,1736442649680,-737.5,0.00010343,2]
[348314527,1736442649690,-577.94,0.00010343,2]
[348314528,1736442649700,-511.66270699,0.00010343,2]
[348314529,1736442649709,-576.31,0.00010343,2]
[348314530,1736442649719,-1136.76,0.00010343,2]
[348314531,1736442649728,-500.0,0.00010343,2]
[348314532,1736442649737,-746.81,0.00010343,2]
[348314533,1736442649747,-544.62,0.00010343,2]
[348314534,1736442649757,-500.0,0.00010343,2]
[348314535,1736442649767,-500.0,0.00010343,2]
[348314536,1736442649777,-1042.62,0.00010343,2]
[348314537,1736442649787,-500.0,0.00010343,2]
[348314538,1736442649799,-602.09,0.00010343,2]
[348314539,1736442649808,-500.0,0.00010343,2]
[348314540,1736442649818,-500.0,0.00010343,2]
[348314541,1736442649827,-500.0,0.00010343,2]
[348314542,1736442649838,-500.0,0.00010343,2]
[348314543,1736442649848,-500.0,0.00010343,2]
[348314544,1736442649860,-962.61,0.00010343,2]
[348314545,1736442649874,-500.0,0.00010343,2]
[348314546,1736442649884,-500.0,0.00010343,2]
[348314547,1736442649894,-628.16,0.00010343,2]
[348314548,1736442649904,-500.0,0.00010343,2]
[348314549,1736442649914,-546.96032371,0.00010343,2]
[348314550,1736442649923,-500.0,0.00010343,2]
[348314551,1736442649933,-620.16,0.00010343,2]
[348314552,1736442649943,-500.0,0.00010343,2]
[348314553,1736442649953,-500.0,0.00010343,2]
[348314554,1736442649965,-500.0,0.00010343,2]
[348314555,1736442649975,-1639.86,0.00010343,2]
[348314556,1736442649984,-577.42,0.00010343,2]
[348314557,1736442649994,-500.0,0.00010343,2]
[348314558,1736442650004,-500.0,0.00010343,2]
[348314559,1736442650013,-500.0,0.00010343,2]
[348314560,1736442650023,-500.0,0.00010343,2]
[348314561,1736442650033,-500.0,0.00010343,2]
[348314562,1736442650042,-500.0,0.00010343,2]
[348314563,1736442650052,-500.0,0.00010343,2]
[348314564,1736442650062,-500.0,0.00010343,2]
[348314565,1736442650072,-500.0,0.00010343,2]
[348314566,1736442650081,-500.0,0.00010343,2]
[348314567,1736442650091,-500.0,0.00010343,2]
[348314568,1736442650101,-523.33,0.00010343,2]
[348314569,1736442650115,-176.20886625,0.00010343,2]
[348314570,1736442650178,-323.79113375,0.00010343,2]
[348314571,1736442650188,-116.02886635,0.00010343,2]
[348314572,1736442650199,-383.97113365,0.00010343,2]
[348314573,1736442650209,-500.0,0.00010343,2]
[348314574,1736442650219,-500.0,0.00010343,2]
[348314575,1736442650228,-500.0,0.00010343,2]
[348314576,1736442650239,-500.0,0.00010343,2]
[348314577,1736442650248,-500.0,0.00010343,2]
[348314578,1736442650258,-890.48,0.00010343,2]
[348314579,1736442650267,-500.0,0.00010343,2]
[348314580,1736442650277,-500.0,0.00010343,2]
[348314581,1736442650287,-500.0,0.00010343,2]
[348314582,1736442650297,-500.0,0.00010343,2]
[348314583,1736442650306,-500.0,0.00010343,2]
[348314584,1736442650316,-1447.93,0.00010343,2]
[348314585,1736442650325,-617.59,0.00010343,2]
[348314586,1736442650335,-500.0,0.00010343,2]
[348314587,1736442650344,-500.0,0.00010343,2]
[348314588,1736442650353,-500.0,0.00010343,2]
[348314589,1736442650366,-500.0,0.00010343,2]
[348314590,1736442650374,-500.0,0.00010343,2]
[348314591,1736442650383,-500.0,0.00010343,2]
[348314592,1736442650392,-500.0,0.00010343,2]
[348314593,1736442650402,-500.0,0.00010343,2]
[348314594,1736442650410,-620.95,0.00010343,2]
[348314595,1736442650419,-500.0,0.00010343,2]
[348314596,1736442650427,-611.45,0.00010343,2]
[348314597,1736442650436,-500.0,0.00010343,2]
[348314598,1736442650445,-500.0,0.00010343,2]
[348314599,1736442650455,-1210.35,0.00010343,2]
[348314600,1736442650464,-500.0,0.00010343,2]
[348314601,1736442650474,-500.0,0.00010343,2]
[348314602,1736442650484,-500.0,0.00010343,2]
[348314603,1736442650493,-500.0,0.00010343,2]
[348314604,1736442650503,-771.54,0.00010343,2]
[348314605,1736442650512,-500.0,0.00010343,2]
[348314606,1736442650521,-500.0,0.00010343,2]
[348314607,1736442650531,-500.0,0.00010343,2]
[348314608,1736442650541,-500.0,0.00010343,2]
[348314609,1736442650551,-500.0,0.00010343,2]
[348314610,1736442650560,-500.0,0.00010343,2]
[348314611,1736442650570,-586.46,0.00010343,2]
[348314612,1736442650580,-500.0,0.00010343,2]
[348314613,1736442650590,-1439.5,0.00010343,2]
[348314614,1736442650599,-500.0,0.00010343,2]
[348314615,1736442650610,-533.35,0.00010343,2]
[348314616,1736442650620,-538.7,0.00010343,2]
[348314617,1736442650630,-500.0,0.00010343,2]
[348314618,1736442650639,-500.0,0.00010343,2]
[348314619,1736442650649,-500.0,0.00010343,2]
[348314620,1736442650660,-500.0,0.00010343,2]
[348314621,1736442650670,-1142.8,0.00010343,2]
[348314622,1736442650680,-500.0,0.00010343,2]
[348314623,1736442650690,-500.0,0.00010343,2]
[348314624,1736442650700,-500.0,0.00010343,2]
[348314625,1736442650709,-500.0,0.00010343,2]
[348314626,1736442650719,-500.0,0.00010343,2]
[348314627,1736442650729,-500.0,0.00010343,2]
[348314628,1736442650738,-500.0,0.00010343,2]
[348314629,1736442650749,-500.0,0.00010343,2]
[348314630,1736442650760,-829.65,0.00010343,2]
[348314631,1736442650770,-500.0,0.00010343,2]
[348314632,1736442650780,-371.21268206,0.00010343,2]
[348314633,1736442650798,-191.15731794,0.00010343,2]
[348314634,1736442650807,-583.65,0.00010343,2]
[348314635,1736442650817,-184.55968196,0.00010343,2]
[348314636,1736442650831,-315.44031804,0.00010343,2]
[348314637,1736442650843,-636.67,0.00010343,2]
[348314638,1736442650852,-322.16166031,0.00010343,2]
[348314639,1736442652843,-1000.0,8.814e-05,2]
[348314640,1736442652854,-500.0,9.794e-05,2]
[348314641,1736442652864,-957.775,9.794e-05,2]
[348314642,1736442652875,-285.214,9.794e-05,2]
[348314643,1736442652887,-381.29752691,9.794e-05,2]
[348314644,1736442652899,-1583.19347309,9.794e-05,2]
[348314645,1736442652909,-500.0,9.794e-05,2]
[348314646,1736442652920,-500.0,9.795e-05,2]
[348314647,1736442652929,-647.49939939,9.797e-05,2]
[348314648,1736442652945,-2286.80060061,9.797e-05,2]
[348314649,1736442652954,-1000.0,9.915e-05,2]
[348314650,1736442652964,-500.0,0.00010068,2]
[348314651,1736442652974,-317.02,0.00010068,2]
[348314652,1736442652983,-3207.48,0.00010068,2]
[348314653,1736442652993,-503.71,0.00010068,2]
[348314654,1736442653002,-500.0,0.00010069,2]
[348314655,1736442653011,-2934.3,0.00010071,2]
[348314656,1736442653021,-500.0,0.00010342,2]
[348314657,1736442653031,-3207.48,0.00010342,2]
[348314658,1736442653041,-421.93833969,0.00010343,2]
[348314659,1736442653050,-500.0,0.00010343,2]
[348314660,1736442653060,-500.0,0.00010343,2]
[348314661,1736442653069,-500.0,0.00010343,2]
[348314662,1736442653078,-500.0,0.00010343,2]
[348314663,1736442653087,-966.56,0.00010343,2]
[348314664,1736442653096,-1047.64,0.00010343,2]
[348314665,1736442653107,-500.0,0.00010343,2]
[348314666,1736442653117,-1089.65,0.00010343,2]
[348314667,1736442653128,-500.0,0.00010343,2]
[348314668,1736442653137,-635.39,0.00010343,2]
[348314669,1736442653147,-500.0,0.00010343,2]
[348314670,1736442653156,-500.0,0.00010343,2]
[348314671,1736442653165,-973.9,0.00010343,2]
[348314672,1736442653175,-500.0,0.00010343,2]
[348314673,1736442653184,-500.0,0.00010343,2]
[348314674,1736442653193,-500.0,0.00010343,2]
[348314675,1736442653202,-500.0,0.00010343,2]
[348314676,1736442653211,-500.0,0.00010343,2]
[348314677,1736442653221,-500.0,0.00010343,2]
[348314678,1736442653230,-500.0,0.00010343,2]
[348314679,1736442653239,-607.04,0.00010343,2]
[348314680,1736442653248,-500.0,0.00010343,2]
[348314681,1736442653257,-500.0,0.00010343,2]
[348314682,1736442653267,-500.0,0.00010343,2]
[348314683,1736442653276,-500.0,0.00010343,2]
[348314684,1736442653285,-500.0,0.00010343,2]
[348314685,1736442653297,-500.0,0.00010343,2]
[348314686,1736442653306,-500.0,0.00010343,2]
[348314687,1736442653316,-500.0,0.00010343,2]
[348314688,1736442653326,-500.0,0.00010343,2]
[348314689,1736442653335,-739.51453261,0.00010343,2]
[348314690,1736442653348,-815.44546739,0.00010343,2]
[348314691,1736442653358,-717.90279061,0.00010343,2]
[348314692,1736442653371,-171.79720939,0.00010343,2]
[348314693,1736442653380,-500.0,0.00010343,2]
[348314694,1736442653389,-175.10279067,0.00010343,2]
[348314695,1736442653400,-324.89720933,0.00010343,2]
[348314696,1736442653410,-399.10282567,0.00010343,2]
[348314697,1736442653421,-237.16717433,0.00010343,2]
[348314698,1736442653430,-500.0,0.00010343,2]
[348314699,1736442653440,-446.33282167,0.00010343,2]